lending/lending_fUSD_20240411
["ID","MTS","AMOUNT","RATE_DAILY","PERIOD"]
[322189353,1712867467725,-1039.2,0.00028219,2]
[322189354,1712867467735,-3194.11,0.00028219,2]
[322189355,1712867467745,-500.0,0.00028219,2]
[322189356,1712867467755,-3988.52,0.00028219,2]
[322189357,1712867467764,-500.0,0.00028219,2]
[322189358,1712867467773,-500.0,0.00028219,2]
[322189359,1712867467782,-3271.94,0.00028219,2]
[322189360,1712867467791,-500.0,0.00028219,2]
[322189361,1712867467801,-500.0,0.00028219,2]
[322189362,1712867467810,-529.12,0.00028219,2]
[322189363,1712867467821,-500.0,0.00028219,2]
[322189364,1712867467831,-1924.89,0.00028219,2]
[322189365,1712867467840,-1019.03,0.00028219,2]
[322189366,1712867467849,-859.87,0.00028219,2]
[322189367,1712867467858,-3308.86,0.00028219,2]
[322189368,1712867467867,-500.0,0.00028219,2]
[322189369,1712867467876,-153.0,0.00028219,2]
[322189370,1712867467886,-150.0,0.00028219,2]
[322189371,1712867467895,-323.08575834,0.00028241,2]
[322189372,1712867467904,-656.86,0.000283,2]
[322189373,1712867467913,-771.27,0.0002839,2]
[322189374,1712867467923,-1000.0,0.000284,2]
[322189375,1712867467933,-500.0,0.00028493,2]
[322189376,1712867467942,-500.0,0.00028493,2]
[322189377,1712867467951,-506.13,0.00028493,2]
[322189378,1712867467960,-500.0,0.00028493,2]
[322189379,1712867467969,-500.0,0.00028493,2]
[322189380,1712867467978,-191.57882634,0.00028493,2]
[322189381,1712867467988,-500.0,0.00028493,2]
[322189382,1712867467997,-540.08,0.00028493,2]
[322189383,1712867468006,-500.0,0.00028493,2]
[322189384,1712867468016,-580.91884267,0.00028493,2]
[322189385,1712867468024,-738.92,0.00028493,2]
[322189386,1712867468033,-193.77013062,0.00028493,2]
[322189387,1712867468043,-500.0,0.00028493,2]
[322189388,1712867468051,-500.0,0.00028493,2]
[322189389,1712867468060,-722.89,0.00028493,2]
[322189390,1712867468071,-500.0,0.00028493,2]
[322189391,1712867468080,-500.0,0.00028493,2]
[322189392,1712867468089,-601.33,0.00028493,2]
[322189393,1712867468098,-500.0,0.00028493,2]
[322189394,1712867468107,-500.0,0.00028493,2]
[322189395,1712867468116,-500.0,0.00028493,2]
[322189396,1712867468125,-500.0,0.00028493,2]
[322189397,1712867468134,-500.0,0.00028493,2]
[322189398,1712867468143,-500.0,0.00028493,2]
[322189399,1712867468153,-548.24,0.00028493,2]
[322189400,1712867468162,-500.0,0.00028493,2]
[322189401,1712867468171,-500.0,0.00028493,2]
[322189402,1712867468180,-500.0,0.00028493,2]
[322189403,1712867468189,-500.0,0.00028493,2]
[322189404,1712867468198,-500.0,0.00028493,2]
[322189405,1712867468208,-500.0,0.00028493,2]
[322189406,1712867468217,-500.0,0.00028493,2]
[322189407,1712867468226,-500.0,0.00028493,2]
[322189408,1712867468235,-500.0,0.00028493,2]
[322189409,1712867468243,-500.0,0.00028493,2]
[322189410,1712867468252,-509.8,0.00028493,2]
[322189411,1712867468459,-500.0,0.00028493,2]
[322189412,1712867468469,-500.0,0.00028493,2]
[322189413,1712867468479,-500.0,0.00028493,2]
[322189414,1712867468488,-544.92,0.00028493,2]
[322189415,1712867468497,-500.0,0.00028493,2]
[322189416,1712867468506,-532.74,0.00028493,2]
[322189417,1712867468515,-500.0,0.00028493,2]
[322189418,1712867468525,-500.0,0.00028493,2]
[322189419,1712867468534,-500.0,0.00028493,2]
[322189420,1712867468543,-500.0,0.00028493,2]
[322189421,1712867468552,-500.0,0.00028493,2]
[322189422,1712867468562,-500.0,0.00028493,2]
[322189423,1712867468573,-887.21,0.00028493,2]
[322189424,1712867468582,-500.0,0.00028493,2]
[322189425,1712867468591,-300.0,0.00028493,2]
[322189426,1712867468601,-500.0,0.00028493,2]
[322189427,1712867468610,-500.0,0.00028493,2]
[322189428,1712867468619,-990.85,0.00028493,2]
[322189429,1712867468629,-500.0,0.00028493,2]
[322189430,1712867468637,-500.0,0.00028493,2]
[322189431,1712867468646,-500.0,0.00028493,2]
[322189432,1712867468656,-150.0,0.00028493,2]
[322189433,1712867468669,-620.93,0.00028493,2]
[322189434,1712867468678,-500.0,0.00028493,2]
[322189435,1712867468687,-500.0,0.00028493,2]
[322189436,1712867468697,-500.0,0.00028493,2]
[322189437,1712867468706,-500.0,0.00028493,2]
[322189438,1712867468715,-500.0,0.00028493,2]
[322189439,1712867468725,-500.0,0.00028493,2]
[322189440,1712867468734,-500.0,0.00028493,2]
[322189441,1712867468744,-622.93,0.00028493,2]
[322189442,1712867468753,-500.0,0.00028493,2]
[322189443,1712867468762,-500.0,0.00028493,2]
[322189444,1712867468771,-500.0,0.00028493,2]
[322189445,1712867468780,-500.0,0.00028493,2]
[322189446,1712867468789,-242.88470145,0.00028493,2]
[322189447,1712867468799,-500.0,0.00028493,2]
[322189448,1712867468809,-500.0,0.00028493,2]
[322189449,1712867468819,-500.0,0.00028493,2]
[322189450,1712867468828,-668.04,0.00028493,2]
[322189451,1712867468837,-742.31,0.00028493,2]
[322189452,1712867468846,-500.0,0.00028493,2]
[322189453,1712867468855,-500.0,0.00028493,2]
[322189454,1712867468864,-965.5,0.00028493,2]
[322189455,1712867468873,-500.0,0.00028493,2]
[322189456,1712867468883,-500.0,0.00028493,2]
[322189457,1712867468892,-500.0,0.00028493,2]
[322189458,1712867468901,-500.0,0.00028493,2]
[322189459,1712867468910,-945.95,0.00028493,2]
[322189460,1712867468919,-500.0,0.00028493,2]
[322189461,1712867468929,-583.56,0.00028493,2]
[322189462,1712867468938,-1002.15,0.00028493,2]
[322189463,1712867468946,-519.46,0.00028493,2]
[322189464,1712867468955,-556.71,0.00028493,2]
[322189465,1712867468964,-500.0,0.00028493,2]
[322189466,1712867468973,-500.0,0.00028493,2]
[322189467,1712867468982,-151.0,0.00028493,7]
[322189468,1712867468991,-634.1,0.00028493,2]
[322189469,1712867469000,-500.0,0.00028493,2]
[322189470,1712867469009,-500.0,0.00028493,2]
[322189471,1712867469018,-559.63,0.00028493,2]
[322189472,1712867469028,-628.42,0.00028493,2]
[322189473,1712867469037,-1123.24,0.00028493,2]
[322189474,1712867469046,-500.0,0.00028493,2]
[322189475,1712867469055,-500.0,0.00028493,2]
[322189476,1712867469064,-500.0,0.00028493,2]
[322189477,1712867469073,-534.1,0.00028493,2]
[322189478,1712867469082,-500.0,0.00028493,2]
[322189479,1712867469091,-704.77,0.00028493,2]
[322189480,1712867469100,-992.8,0.00028493,2]
[322189481,1712867469109,-417.4810936,0.00028493,2]
[322189482,1712867469119,-1290.55,0.00028493,2]
[322189483,1712867469127,-1083.69,0.00028493,2]
[322189484,1712867469136,-1239.02,0.00028493,2]
[322189485,1712867469146,-426.58688128,0.00028493,2]
[322189486,1712867469155,-500.0,0.00028493,2]
[322189487,1712867469164,-951.26,0.00028493,2]
[322189488,1712867469173,-500.0,0.00028493,2]
[322189489,1712867469182,-1207.18,0.00028493,2]
[322189490,1712867469191,-500.0,0.00028493,2]
[322189491,1712867469200,-500.0,0.00028493,2]
[322189492,1712867469210,-1171.81,0.00028493,2]
[322189493,1712867469219,-500.0,0.00028493,2]
[322189494,1712867469229,-500.0,0.00028493,2]
[322189495,1712867469238,-592.65,0.00028493,2]
[322189496,1712867469248,-500.0,0.00028493,2]
[322189497,1712867469258,-826.25,0.00028493,2]
[322189498,1712867469267,-500.0,0.00028493,2]
[322189499,1712867469276,-1333.74,0.00028493,2]
[322189500,1712867469286,-1494.9,0.00028493,2]
[322189501,1712867469295,-500.0,0.00028493,2]
[322189502,1712867469304,-543.43,0.00028493,2]
[322189503,1712867469312,-500.0,0.00028493,2]
[322189504,1712867469323,-1163.74,0.00028493,2]
[322189505,1712867469331,-751.92,0.00028493,2]
[322189506,1712867469341,-701.34,0.00028493,2]
[322189507,1712867469350,-500.0,0.00028493,2]
[322189508,1712867469359,-500.0,0.00028493,2]
[322189509,1712867469368,-547.77,0.00028493,2]
[322189510,1712867469377,-500.0,0.00028493,2]
[322189511,1712867469386,-549.2,0.00028493,2]
[322189512,1712867469395,-1664.61,0.00028493,2]
[322189513,1712867469404,-500.0,0.00028493,2]
[322189514,1712867469413,-1556.34,0.00028493,2]
[322189515,1712867469422,-1379.25,0.00028493,2]
[322189516,1712867469431,-500.0,0.00028493,2]
[322189517,1712867469440,-1158.04,0.00028493,2]
[322189518,1712867469450,-500.0,0.00028493,2]
[322189519,1712867469458,-500.0,0.00028493,2]
[322189520,1712867469468,-500.0,0.00028493,2]
[322189521,1712867469476,-762.51,0.00028493,2]
[322189522,1712867469486,-537.47,0.00028493,2]
[322189523,1712867469495,-785.01,0.00028493,2]
[322189524,1712867469504,-577.76,0.00028493,2]
[322189525,1712867469513,-864.22,0.00028493,2]
[322189526,1712867469522,-500.0,0.00028493,2]
[322189527,1712867469532,-500.0,0.00028493,2]
[322189528,1712867469540,-621.4,0.00028493,2]
[322189529,1712867469549,-865.71,0.00028493,2]
[322189530,1712867469558,-500.0,0.00028493,2]
[322189531,1712867469569,-500.0,0.00028493,2]
[322189532,1712867469578,-603.97,0.00028493,2]
[322189533,1712867469587,-2147.01,0.00028493,2]
[322189534,1712867469597,-585.65,0.00028493,2]
[322189535,1712867469607,-1001.68,0.00028493,2]
[322189536,1712867469616,-500.0,0.00028493,2]
[322189537,1712867469626,-500.0,0.00028493,2]
[322189538,1712867469635,-827.73,0.00028493,2]
[322189539,1712867469645,-500.0,0.00028493,2]
[322189540,1712867469656,-971.76,0.00028493,2]
[322189541,1712867469669,-1030.34,0.00028493,2]
[322189542,1712867469678,-500.0,0.00028493,2]
[322189543,1712867469688,-1095.87,0.00028493,2]
[322189544,1712867469697,-500.0,0.00028493,2]
[322189545,1712867469707,-500.0,0.00028493,2]
[322189546,1712867469716,-785.0,0.00028493,2]
[322189547,1712867469725,-500.0,0.00028493,2]
[322189548,1712867469734,-500.0,0.00028493,2]
[322189549,1712867469744,-500.0,0.00028493,2]
[322189550,1712867469754,-1244.87,0.00028493,2]
[322189551,1712867469764,-500.0,0.00028493,2]
[322189552,1712867469773,-500.0,0.00028493,2]
[322189553,1712867469782,-685.88,0.00028493,2]
[322189554,1712867469791,-1136.76,0.00028493,2]
[322189555,1712867469801,-500.0,0.00028493,2]
[322189556,1712867469810,-500.0,0.00028493,2]
[322189557,1712867469821,-780.81,0.00028493,2]
[322189558,1712867469830,-972.84,0.00028493,2]
[322189559,1712867469839,-844.02,0.00028493,2]
[322189560,1712867469849,-637.72,0.00028493,2]
[322189561,1712867469858,-1508.08,0.00028493,2]
[322189562,1712867469868,-596.74,0.00028493,2]
[322189563,1712867469877,-500.0,0.00028493,2]
[322189564,1712867469886,-500.0,0.00028493,2]
[322189565,1712867469895,-500.0,0.00028493,2]
[322189566,1712867469904,-500.0,0.00028493,2]
[322189567,1712867469914,-500.0,0.00028493,2]
[322189568,1712867469923,-652.52,0.00028493,2]
[322189569,1712867469932,-925.5,0.00028493,2]
[322189570,1712867469941,-500.0,0.00028493,2]
[322189571,1712867469951,-1437.53,0.00028493,2]
[322189572,1712867469960,-226.14891013,0.00028493,2]
[322189573,1712867469969,-500.0,0.00028493,2]
[322189574,1712867469978,-1869.16,0.00028493,2]
[322189575,1712867469987,-543.82,0.00028493,2]
[322189576,1712867469996,-500.0,0.00028493,2]
[322189577,1712867470005,-500.0,0.00028493,2]
[322189578,1712867470015,-500.0,0.00028493,2]
[322189579,1712867470025,-1006.41,0.00028493,2]
[322189580,1712867470034,-500.0,0.00028493,2]
[322189581,1712867470042,-1036.35,0.00028493,2]
[322189582,1712867470051,-500.0,0.00028493,2]
[322189583,1712867470060,-1152.84,0.00028493,2]
[322189584,1712867470072,-536.23,0.00028493,2]
[322189585,1712867470082,-2403.83,0.00028493,2]
[322189586,1712867470091,-599.78,0.00028493,2]
[322189587,1712867470101,-500.0,0.00028493,2]
[322189588,1712867470110,-500.0,0.00028493,2]
[322189589,1712867470119,-720.84,0.00028493,2]
[322189590,1712867470128,-655.03,0.00028493,2]
[322189591,1712867470137,-500.0,0.00028493,2]
[322189592,1712867470147,-1708.49,0.00028493,2]
[322189593,1712867470156,-500.0,0.00028493,2]
[322189594,1712867470166,-609.59,0.00028493,2]
[322189595,1712867470174,-1102.25,0.00028493,2]
[322189596,1712867470184,-500.0,0.00028493,2]
[322189597,1712867470194,-500.0,0.00028493,2]
[322189598,1712867470203,-1332.84,0.00028493,2]
[322189599,1712867470212,-500.0,0.00028493,2]
[322189600,1712867470222,-1302.8,0.00028493,2]
[322189601,1712867470232,-500.0,0.00028493,2]
[322189602,1712867470241,-500.0,0.00028493,2]
[322189603,1712867470250,-500.0,0.00028493,2]
[322189604,1712867470260,-500.0,0.00028493,2]
[322189605,1712867470270,-785.2,0.00028493,2]
[322189606,1712867470279,-559.06,0.00028493,2]
[322189607,1712867470288,-500.0,0.00028493,2]
[322189608,1712867470297,-435.06737347,0.00028493,2]
[322189609,1712867470306,-831.89,0.00028493,2]
[322189610,1712867470318,-539.44,0.00028493,2]
[322189611,1712867470327,-577.66,0.00028493,2]
[322189612,1712867470337,-1448.5,0.00028493,2]
[322189613,1712867470346,-500.0,0.00028493,2]
[322189614,1712867470355,-823.04,0.00028493,2]
[322189615,1712867470363,-1927.25,0.00028493,2]
[322189616,1712867470373,-500.0,0.00028493,2]
[322189617,1712867470383,-500.0,0.00028493,2]
[322189618,1712867470392,-894.11,0.00028493,2]
[322189619,1712867470401,-783.0,0.00028493,2]
[322189620,1712867470411,-500.0,0.00028493,2]
[322189621,1712867470420,-500.0,0.00028493,2]
[322189622,1712867470429,-1633.78,0.00028493,2]
[322189623,1712867470439,-500.0,0.00028493,2]
[322189624,1712867470448,-500.0,0.00028493,2]
[322189625,1712867470458,-1373.75,0.00028493,2]
[322189626,1712867470467,-1361.56,0.00028493,2]
[322189627,1712867470476,-1603.87,0.00028493,2]
[322189628,1712867470485,-500.0,0.00028493,2]
[322189629,1712867470494,-500.0,0.00028493,2]
[322189630,1712867470503,-500.0,0.00028493,2]
[322189631,1712867470513,-516.78,0.00028493,2]
[322189632,1712867470523,-692.27,0.00028493,2]
[322189633,1712867470533,-776.99,0.00028493,2]
[322189634,1712867470542,-1068.23,0.00028493,2]
[322189635,1712867470552,-500.0,0.00028493,2]
[322189636,1712867470561,-500.0,0.00028493,2]
[322189637,1712867470572,-872.26,0.00028493,2]
[322189638,1712867470581,-500.0,0.00028493,2]
[322189639,1712867470590,-500.0,0.00028493,2]
[322189640,1712867470600,-791.65,0.00028493,2]
[322189641,1712867470609,-500.0,0.00028493,2]
[322189642,1712867470619,-1361.19,0.00028493,2]
[322189643,1712867470629,-945.38,0.00028493,2]
[322189644,1712867470638,-411.49654477,0.00028493,2]
[322189645,1712867470647,-643.89,0.00028493,2]
[322189646,1712867470656,-500.0,0.00028493,2]
[322189647,1712867470669,-1748.62,0.00028493,2]
[322189648,1712867470679,-500.0,0.00028493,2]
[322189649,1712867470688,-516.37,0.00028493,2]
[322189650,1712867470697,-500.0,0.00028493,2]
[322189651,1712867470708,-729.25,0.00028493,2]
[322189652,1712867470717,-1281.83,0.00028493,2]
[322189653,1712867470726,-1484.45,0.00028493,2]
[322189654,1712867470736,-500.0,0.00028493,2]
[322189655,1712867470747,-1574.63394,0.00028493,2]
[322189656,1712867470757,-882.78,0.00028493,2]
[322189657,1712867470767,-500.0,0.00028493,2]
[322189658,1712867470776,-500.0,0.00028493,2]
[322189659,1712867470787,-500.0,0.00028493,2]
[322189660,1712867470797,-500.0,0.00028493,2]
[322189661,1712867470806,-921.03,0.00028493,2]
[322189662,1712867470816,-829.15,0.00028493,2]
[322189663,1712867470825,-500.0,0.00028493,2]
[322189664,1712867470835,-500.0,0.00028493,2]
[322189665,1712867470844,-1077.51,0.00028493,2]
[322189666,1712867470854,-840.25,0.00028493,2]
[322189667,1712867470863,-885.53,0.00028493,2]
[322189668,1712867470873,-500.0,0.00028493,2]
[322189669,1712867470882,-500.0,0.00028493,2]
[322189670,1712867470891,-941.92,0.00028493,2]
[322189671,1712867470902,-500.0,0.00028493,2]
[322189672,1712867470912,-814.36,0.00028493,2]
[322189673,1712867470923,-1149.74,0.00028493,2]
[322189674,1712867470933,-500.0,0.00028493,2]
[322189675,1712867470943,-602.99,0.00028493,2]
[322189676,1712867470952,-7207.69,0.00028493,2]
[322189677,1712867470962,-886.11,0.00028493,2]
[322189678,1712867470972,-665.07,0.00028493,2]
[322189679,1712867470981,-5744.79,0.00028493,2]
[322189680,1712867470991,-759.35,0.00028493,2]
[322189681,1712867471001,-1741.25,0.00028493,2]
[322189682,1712867471010,-3488.69,0.00028493,2]
[322189683,1712867471019,-500.0,0.00028493,2]
[322189684,1712867471028,-1728.63,0.00028493,2]
[322189685,1712867471038,-500.0,0.00028493,2]
[322189686,1712867471047,-2206.53,0.00028493,2]
[322189687,1712867471056,-500.0,0.00028493,2]
[322189688,1712867471065,-500.0,0.00028493,2]
[322189689,1712867471075,-4939.06,0.00028493,2]
[322189690,1712867471084,-903.44,0.00028493,2]
[322189691,1712867471094,-569.39,0.00028493,2]
[322189692,1712867471103,-2854.87,0.00028493,2]
[322189693,1712867471112,-1238.33,0.00028493,2]
[322189694,1712867471122,-1377.33,0.00028493,2]
[322189695,1712867471131,-1251.52,0.00028493,2]
[322189696,1712867471141,-500.0,0.00028493,2]
[322189697,1712867471150,-500.0,0.00028493,2]
[322189698,1712867471158,-2762.86,0.00028493,2]
[322189699,1712867471168,-2031.68,0.00028493,2]
[322189700,1712867471177,-4951.25,0.00028493,2]
[322189701,1712867471186,-1407.86,0.00028493,2]
[322189702,1712867471195,-500.0,0.00028493,2]
[322189703,1712867471204,-1127.31,0.00028493,2]
[322189704,1712867471213,-543.84,0.00028493,2]
[322189705,1712867471222,-1423.87,0.00028493,2]
[322189706,1712867471231,-1790.86,0.00028493,2]
[322189707,1712867471241,-561.84,0.00028493,2]
[322189708,1712867471250,-3305.89527994,0.00028493,2]
[322189709,1712867471740,-500.0,0.00027397,2]
[322189710,1712867471750,-500.0,0.00027397,2]
[322189711,1712867471759,-309.99765462,0.00027397,2]
[322189712,1712867471772,-190.00234538,0.00027397,2]
[322189713,1712867471782,-208.51,0.00027671,2]
[322189714,1712867471792,-500.0,0.00027671,2]
[322189715,1712867471802,-500.0,0.00027671,2]
[322189716,1712867471812,-500.0,0.00027945,2]
[322189717,1712867471824,-500.0,0.00028219,2]
[322189718,1712867471833,-995.5845534,0.00028417,2]
[322189719,1712867471842,-5395.13472006,0.00028493,2]
[322189720,1712867471851,-500.0,0.00028493,2]
[322189721,1712867471861,-500.0,0.00028493,2]
[322189722,1712867471870,-1108.55,0.00028493,2]
[322189723,1712867471880,-500.0,0.00028493,2]
[322189724,1712867471889,-1576.12,0.00028493,2]
[322189725,1712867471899,-7253.01,0.00028493,2]
[322189726,1712867471908,-500.0,0.00028493,2]
[322189727,1712867471917,-1033.59,0.00028493,2]
[322189728,1712867471926,-45059.41,0.00028493,2]
[322189729,1712867471936,-594.03,0.00028493,2]
[322189730,1712867471945,-11292.75,0.00028493,2]
[322189731,1712867471954,-4960.81,0.00028493,2]
[322189732,1712867471964,-767.19,0.00028493,2]
[322189733,1712867471973,-948.27,0.00028493,2]
[322189734,1712867471982,-1477.61,0.00028493,2]
[322189735,1712867471991,-3190.26,0.00028493,2]
[322189736,1712867472000,-535.56,0.00028493,2]
[322189737,1712867472010,-500.0,0.00028493,2]
[322189738,1712867472019,-2643.54,0.00028493,2]
[322189739,1712867472028,-10523.15,0.00028493,2]
[322189740,1712867472038,-2247.53,0.00028493,2]
[322189741,1712867472047,-500.0,0.00028493,2]
[322189742,1712867472056,-1391.72,0.00028493,2]
[322189743,1712867472065,-500.0,0.00028493,2]
[322189744,1712867472074,-2136.22,0.00028493,2]
[322189745,1712867472084,-8306.64,0.00028493,2]
[322189746,1712867472093,-2689.98,0.00028493,2]
[322189747,1712867472103,-623.76,0.00028493,2]
[322189748,1712867472112,-5108.44,0.00028493,2]
[322189749,1712867472121,-981.96,0.00028493,2]
[322189750,1712867472131,-2048.45,0.00028493,2]
[322189751,1712867472140,-1307.66,0.00028493,2]
[322189752,1712867472149,-500.0,0.00028493,2]
[322189753,1712867472158,-3912.28,0.00028493,2]
[322189754,1712867472168,-500.0,0.00028493,2]
[322189755,1712867472178,-1026.11,0.00028493,2]
[322189756,1712867472187,-833.0,0.00028493,2]
[322189757,1712867472197,-1599.07,0.00028493,2]
[322189758,1712867472207,-2633.61,0.00028493,2]
[322189759,1712867472217,-2930.86,0.00028493,2]
[322189760,1712867472228,-500.0,0.00028493,2]
[322189761,1712867472238,-2238.13,0.00028493,2]
[322189762,1712867472248,-2651.69,0.00028493,2]
[322189763,1712867472258,-2311.62,0.00028493,2]
[322189764,1712867472268,-5405.21,0.00028493,2]
[322189765,1712867472279,-700.69,0.00028493,2]
[322189766,1712867472288,-2643.62,0.00028493,2]
[322189767,1712867472298,-1089.15,0.00028493,2]
[322189768,1712867472308,-1382.04,0.00028493,2]
[322189769,1712867472511,-1226.83,0.00028493,2]
[322189770,1712867472522,-500.0,0.00028493,2]
[322189771,1712867472531,-2093.53,0.00028493,2]
[322189772,1712867472540,-2058.33,0.00028493,2]
[322189773,1712867472550,-1710.88,0.00028493,2]
[322189774,1712867472559,-500.0,0.00028493,2]
[322189775,1712867472571,-880.19,0.00028493,2]
[322189776,1712867472580,-847.87,0.00028493,2]
[322189777,1712867472589,-9724.22,0.00028493,2]
[322189778,1712867472599,-21675.68,0.00028493,2]
[322189779,1712867472608,-642.09,0.00028493,2]
[322189780,1712867472618,-769.81,0.00028493,2]
[322189781,1712867472630,-1979.15,0.00028493,2]
[322189782,1712867472640,-1373.89,0.00028493,2]
[322189783,1712867472650,-4375.9,0.00028493,2]
[322189784,1712867472661,-2723.9,0.00028493,2]
[322189785,1712867472673,-500.0,0.00028493,2]
[322189786,1712867472682,-585.34,0.00028493,2]
[322189787,1712867472692,-751.69,0.00028493,2]
[322189788,1712867472702,-3708.66,0.00028493,2]
[322189789,1712867472712,-2354.05,0.00028493,2]
[322189790,1712867472723,-950.63,0.00028493,2]
[322189791,1712867472733,-3133.07,0.00028493,2]
[322189792,1712867472744,-2610.98,0.00028493,2]
[322189793,1712867472756,-3220.82,0.00028493,2]
[322189794,1712867472765,-500.0,0.00028493,2]
[322189795,1712867472775,-2135.35,0.00028493,2]
[322189796,1712867472785,-500.0,0.00028493,2]
[322189797,1712867472796,-832.55,0.00028493,2]
[322189798,1712867472806,-7479.23,0.00028493,2]
[322189799,1712867472817,-1428.05,0.00028493,2]
[322189800,1712867472828,-4483.2,0.00028493,2]
[322189801,1712867472839,-1762.59,0.00028493,2]
[322189802,1712867472849,-2545.7,0.00028493,2]
[322189803,1712867472858,-500.0,0.00028493,2]
[322189804,1712867472868,-2856.97,0.00028493,2]
[322189805,1712867472879,-1220.85,0.00028493,2]
[322189806,1712867472889,-500.0,0.00028493,2]
[322189807,1712867472899,-500.0,0.00028493,2]
[322189808,1712867472911,-500.0,0.00028493,2]
[322189809,1712867472921,-2970.94,0.00028493,2]
[322189810,1712867472932,-781.28,0.00028493,2]
[322189811,1712867472942,-496.59472087,0.00028493,2]
[322189812,1712867472952,-1713.54,0.00028493,2]
[322189813,1712867472962,-847.8,0.00028493,2]
[322189814,1712867472971,-500.0,0.00028493,2]
[322189815,1712867472981,-4514.4,0.00028493,2]
[322189816,1712867472992,-1336.56,0.00028493,2]
[322189817,1712867473002,-9546.26273752,0.00028493,2]
[322189818,1712867473060,-779.48879845,0.00028493,2]
[322189819,1712867473077,-9905.39641727,0.00028493,2]
[322189820,1712867473094,-5165.00204676,0.00028493,2]
[322189821,1712867473106,-1066.59530519,0.00028493,2]
[322189822,1712867473124,-12643.24469481,0.00028493,2]
[322189823,1712867473135,-500.0,0.00028493,2]
[322189824,1712867473145,-1285.78,0.00028493,2]
[322189825,1712867473155,-93.88751528,0.00028493,2]
[322189830,1712868093582,500.0,0.00027397,30]
[322189831,1712868093840,500.0,0.00027671,30]
[322189832,1712868094096,500.0,0.00027945,30]
[322189833,1712868094374,500.0,0.00028219,30]
[322189834,1712868094672,500.0,0.00028493,30]
[322189835,1712868094939,522.7060579,0.00028767,30]
[322189836,1712868434013,350.0,0.00021,3]
[322189837,1712868482552,319.16764632,0.00021,2]
[322189838,1712868486973,319.16764632,0.00021,2]
[322189839,1712868520984,319.16764632,0.00021,2]
[322189840,1712868543197,318.2054056,0.00021,2]
[322189887,1712868631941,-199.93044363,0.00022997,2]
[322189888,1712868631950,-2860.53734832,0.00022998,2]
[322189889,1712868632027,-1118.42265168,0.00022998,2]
[322189890,1712868632037,-400.0,0.00023,3]
[322189891,1712868632048,-174.94007769,0.00023539,2]
[322189892,1712868632057,-469.599401,0.00023639,2]
[322189893,1712868632069,-771.04,0.00023669,2]
[322189894,1712868632083,-174.94007768,0.00024274,2]
[322189895,1712868632093,-10935.33493804,0.00024372,2]
[322189896,1712868632103,-218.63867384,0.00024374,2]
[322189897,1712868632113,-3300.0,0.00024382,2]
[322189898,1712868632123,-1300.0,0.00024382,2]
[322189899,1712868632133,-156.83066497,0.00024474,2]
[322189900,1712868632143,-599.27979208,0.00024474,2]
[322189901,1712868632153,-9999.99,0.00024474,2]
[322189902,1712868632164,-499.99,0.00024768,2]